[Event "EYCC Girls-U12 2019"]
[Site "Bratislava"]
[Date "2019.08.06"]
[Round "5.22"]
[White "Bondar, Daria"]
[Black "Maria, Lia-Alexandra"]
[Result "0-1"]
[ECO "B94"]
[WhiteElo "1265"]
[BlackElo "1572"]
[Annotator "NA"]
[PlyCount "112"]
[EventDate "2019.08.02"]
[EventType "swiss"]
[EventCountry "SVK"]
[SourceTitle "playchess.com"]
[Source "ChessBase"]
[SourceQuality "1"]
[TimeControl "40/5400+30:1800+30"]

1. e4 {[%emt 0:00:00]} c5 {[%emt 0:00:00]} 2. Nf3 {[%emt 0:00:00]} d6 {[%emt 0:00:00]} 3. d4 {[%emt 0:00:00]} cxd4 {[%emt 0:00:00]} 4. Nxd4 {[%emt 0:00:01]} Nf6 {[%emt 0:00:03]} 5. Nc3 {[%emt 0:00:22]} a6 {[%emt 0:00:12]} 6. Bg5 {[%emt 0:00:36]} Nbd7 {[%emt 0:01:12]} 7. f4 {[%emt 0:01:37]} Qc7 {[%emt 0:10:21]} 8. Qf3 {[%emt 0:05:13]} g6 {[%emt 0:09:53]} 9. O-O-O {[%emt 0:05:36]} Bg7 {[%emt 0:03:58]} 10. Be2 {[%emt 0:10:01]} b5 {[%emt 0:09:05]} 11. Rhe1 {[%emt 0:09:13]} Bb7 {[%emt 0:05:08]} 12. Bd3 {[%emt 0:06:00]} O-O {[%emt 0:02:34]} 13. Nde2 {[%emt 0:05:47]} Rfc8 {[%emt 0:06:17]} 14. g4 {[%emt 0:06:40]} b4 {[%emt 0:10:36]} 15. Bxf6 {[%emt 0:09:56]} Nxf6 {[%emt 0:02:34]} 16. Nb1 {[%emt 0:00:45]} Nd7 {[%emt 0:03:53]} 17. c3 {[%emt 0:05:51]} Qa5 {[%emt 0:09:20]} 18. a3 {[%emt 0:05:01]} Rab8 {[%emt 0:05:26]} 19. Kd2 {[%emt 0:04:59]} Nc5 {[%emt 0:04:45]} 20. Bc2 {[%emt 0:04:19]} b3 {[%emt 0:00:48]} 21. Bd3 {[%emt 0:00:33]} Qa4 {[%emt 0:03:56]} 22. Ng3 {[%emt 0:01:44]} Nxd3 {[%emt 0:01:41]} 23. Qxd3 {[%emt 0:00:15]} Rc4 {[%emt 0:00:44]} 24. Re2 {[%emt 0:02:55]} a5 {[%emt 0:01:53]} 25. Ke1 {[%emt 0:02:02]} Ba6 {[%emt 0:01:16]} 26. Qe3 {[%emt 0:01:18]} Rbc8 {[%emt 0:00:53]} 27. Nd2 {[%emt 0:04:01]} R4c5 {[%emt 0:00:38]} 28. Rf2 {[%emt 0:00:09]} Qb5 {[%emt 0:02:08]} 29. Nb1 {[%emt 0:01:37]} a4 {[%emt 0:00:59]} 30. Rfd2 {[%emt 0:00:20]} h5 {[%emt 0:01:10]} 31. g5 {[%emt 0:02:06]} Bb7 {[%emt 0:01:22]} 32. h4 {[%emt 0:00:53]} Rc4 {[%emt 0:01:15]} 33. Kf2 {[%emt 0:00:52]} f6 {[%emt 0:01:08]} 34. Re2 {[%emt 0:02:04]} fxg5 {[%emt 0:00:21]} 35. hxg5 {[%emt 0:01:08]} Rf8 {[%emt 0:00:21]} 36. Kg1 {[%emt 0:00:08]} e5 {[%emt 0:00:52]} 37. Nd2 {[%emt 0:02:39]} Rcc8 {[%emt 0:00:27]} 38. f5 {[%emt 0:00:26]} h4 {[%emt 0:00:31]} 39. f6 {[%emt 0:01:43]} hxg3 {[%emt 0:00:21]} 40. c4 {[%emt 0:00:00]} Qd7 {[%emt 0:00:00]} 41. fxg7 {[%emt 0:01:08]} Rf4 {[%emt 0:00:59]} 42. Rf1 {[%emt 0:01:57]} Rxf1+ {[%emt 0:03:03]} 43. Kxf1 {[%emt 0:02:33]} Qh3+ {[%emt 0:02:44]} 44. Rg2 {[%emt 0:03:27]} Kxg7 {[%emt 0:03:57]} 45. Qxg3 {[%emt 0:02:09]} Qh1+ {[%emt 0:02:24]} 46. Rg1 {[%emt 0:01:57]} Rf8+ {[%emt 0:01:24]} 47. Ke2 {[%emt 0:00:27]} Qh5+ {[%emt 0:01:07]} 48. Ke3 {[%emt 0:06:29]} Rf4 {[%emt 0:02:45]} 49. Rf1 {[%emt 0:02:22]} Rxf1 {[%emt 0:01:47]} 50. Nxf1 {[%emt 0:00:06]} Qd1 {[%emt 0:00:44]} 51. Nd2 {[%emt 0:02:04]} Bxe4 {[%emt 0:04:20]} 52. Qf2 {[%emt 0:00:50]} Bf5 {[%emt 0:00:37]} 53. Qh4 {[%emt 0:08:13]} Qc1 {[%emt 0:04:44]} 54. Ke2 {[%emt 0:02:36]} Qxb2 {[%emt 0:00:38]} 55. Qh1 {[%emt 0:01:32]} Bg4+ {[%emt 0:01:44]} 56. Ke3 {[%emt 0:00:39]} Qd4# {[%emt 0:00:12]} 0-1

[Event "EYCC Girls-U12 2019"]
[Site "Bratislava"]
[Date "2019.08.06"]
[Round "5.23"]
[White "Suarez Gomez, Paula"]
[Black "Darmaeva, Nomina"]
[Result "1-0"]
[ECO "C47"]
[WhiteElo "1438"]
[BlackElo "1408"]
[Annotator "NA"]
[PlyCount "75"]
[EventDate "2019.08.02"]
[EventType "swiss"]
[EventCountry "SVK"]
[SourceTitle "playchess.com"]
[Source "ChessBase"]
[SourceQuality "1"]
[TimeControl "40/5400+30:1800+30"]

1. e4 {[%emt 0:00:00]} e5 {[%emt 0:00:00]} 2. Nf3 {[%emt 0:00:00]} Nc6 {[%emt 0:00:01]} 3. Nc3 {[%emt 0:00:00]} Nf6 {[%emt 0:00:21]} 4. d4 {[%emt 0:00:12]} exd4 {[%emt 0:00:12]} 5. Nxd4 {[%emt 0:00:10]} Bb4 {[%emt 0:00:14]} 6. Nxc6 {[%emt 0:00:08]} bxc6 {[%emt 0:00:25]} 7. Bd3 {[%emt 0:00:07]} d5 {[%emt 0:00:21]} 8. exd5 {[%emt 0:00:07]} cxd5 {[%emt 0:00:52]} 9. O-O {[%emt 0:00:10]} O-O {[%emt 0:00:41]} 10. Bg5 {[%emt 0:00:07]} c6 {[%emt 0:00:26]} 11. Qf3 {[%emt 0:00:15]} Be7 {[%emt 0:00:47]} 12. Rae1 {[%emt 0:00:30]} Be6 {[%emt 0:00:59]} 13. h3 {[%emt 0:02:56]} Rb8 {[%emt 0:06:36]} 14. Nd1 {[%emt 0:10:31]} Re8 {[%emt 0:16:05]} 15. b3 {[%emt 0:03:48]} c5 {[%emt 0:08:14]} 16. Ne3 {[%emt 0:04:25]} h6 {[%emt 0:23:54]} 17. Bh4 {[%emt 0:03:57]} Ne4 {[%emt 0:08:00]} 18. Bxe7 {[%emt 0:06:12]} Qxe7 {[%emt 0:04:21]} 19. Bxe4 {[%emt 0:04:04]} dxe4 {[%emt 0:00:18]} 20. Qxe4 {[%emt 0:02:33]} Qf6 {[%emt 0:02:25]} 21. Qa4 {[%emt 0:10:13]} Qg5 {[%emt 0:05:02]} 22. Kh1 {[%emt 0:02:27]} f5 {[%emt 0:03:06]} 23. Nd5 {[%emt 0:09:51]} Red8 {[%emt 0:15:29]} 24. Rxe6 {[%emt 0:04:48]} Rxd5 {[%emt 0:00:22]} 25. Qc4 {[%emt 0:00:24]} Rbd8 {[%emt 0:01:33]} 26. Re5 {[%emt 0:04:37]} Qd2 {[%emt 0:00:33]} 27. Rxf5 {[%emt 0:00:35]} Kh7 {[%emt 0:01:05]} 28. Qe4 {[%emt 0:02:30]} Kh8 {[%emt 0:00:33]} 29. Rxd5 {[%emt 0:02:39]} Rxd5 {[%emt 0:00:56]} 30. f4 {[%emt 0:01:13]} Rd4 {[%emt 0:00:28]} 31. Qe8+ {[%emt 0:05:53]} Kh7 {[%emt 0:00:11]} 32. f5 {[%emt 0:00:02]} Qxc2 {[%emt 0:00:50]} 33. f6 {[%emt 0:00:02]} Qd3 {[%emt 0:00:36]} 34. Rf3 {[%emt 0:01:50]} Qd1+ {[%emt 0:00:18]} 35. Kh2 {[%emt 0:00:10]} gxf6 {[%emt 0:00:43]} 36. Rxf6 {[%emt 0:01:33]} Rd7 {[%emt 0:00:12]} 37. Qg6+ {[%emt 0:00:12]} Kh8 {[%emt 0:00:50]} 38. Rf8# {[%emt 0:00:12]} 1-0

[Event "EYCC Girls-U12 2019"]
[Site "Bratislava"]
[Date "2019.08.06"]
[Round "5.24"]
[White "Paraschiv, Petronela-Alexandra"]
[Black "Haile, Batel Goitom"]
[Result "1-0"]
[ECO "B38"]
[WhiteElo "1810"]
[BlackElo "1522"]
[Annotator "NA"]
[PlyCount "103"]
[EventDate "2019.08.02"]
[EventType "swiss"]
[EventCountry "SVK"]
[SourceTitle "playchess.com"]
[Source "ChessBase"]
[SourceQuality "1"]
[TimeControl "40/5400+30:1800+30"]

1. e4 {[%emt 0:00:00]} c5 {[%emt 0:00:00]} 2. Nf3 {[%emt 0:00:00]} g6 {[%emt 0:00:10]} 3. d4 {[%emt 0:00:00]} cxd4 {[%emt 0:00:12]} 4. Nxd4 {[%emt 0:00:00]} Bg7 {[%emt 0:00:36]} 5. c4 {[%emt 0:03:11]} Nc6 {[%emt 0:00:28]} 6. Be3 {[%emt 0:00:29]} Nf6 {[%emt 0:00:28]} 7. Nc3 {[%emt 0:00:39]} O-O {[%emt 0:00:12]} 8. Be2 {[%emt 0:00:40]} Re8 {[%emt 0:00:31]} 9. Qd2 {[%emt 0:01:11]} e6 {[%emt 0:01:50]} 10. O-O-O {[%emt 0:02:10]} Qe7 {[%emt 0:15:34]} 11. Bg5 {[%emt 0:23:11]} Nxd4 {[%emt 0:31:40]} 12. Qxd4 {[%emt 0:00:13]} h6 {[%emt 0:01:08]} 13. Bxf6 {[%emt 0:00:29]} Bxf6 {[%emt 0:02:50]} 14. e5 {[%emt 0:00:11]} Bg7 {[%emt 0:01:13]} 15. Nb5 {[%emt 0:01:01]} d5 {[%emt 0:19:34]} 16. exd6 {[%emt 0:13:58]} Qg5+ {[%emt 0:03:21]} 17. Qd2 {[%emt 0:02:14]} Qxd2+ {[%emt 0:04:36]} 18. Rxd2 {[%emt 0:00:10]} Rd8 {[%emt 0:00:57]} 19. Bf3 {[%emt 0:01:05]} a6 {[%emt 0:03:56]} 20. Nc7 {[%emt 0:00:26]} Rb8 {[%emt 0:00:41]} 21. Rhd1 {[%emt 0:00:14]} Be5 {[%emt 0:03:46]} 22. g3 {[%emt 0:03:06]} Bd7 {[%emt 0:01:55]} 23. c5 {[%emt 0:01:11]} Kf8 {[%emt 0:00:48]} 24. Re2 {[%emt 0:02:49]} Bf6 {[%emt 0:01:42]} 25. b3 {[%emt 0:02:45]} Bc3 {[%emt 0:01:39]} 26. a3 {[%emt 0:00:58]} Bc6 {[%emt 0:01:40]} 27. Bxc6 {[%emt 0:00:11]} bxc6 {[%emt 0:00:04]} 28. Nxa6 {[%emt 0:01:14]} Rxb3 {[%emt 0:01:03]} 29. Ra2 {[%emt 0:10:21]} Ba5 {[%emt 0:01:06]} 30. Rd4 {[%emt 0:01:39]} Rc3+ {[%emt 0:00:27]} 31. Kd1 {[%emt 0:01:48]} Ra8 {[%emt 0:00:38]} 32. Nc7 {[%emt 0:02:11]} Rd8 {[%emt 0:00:13]} 33. Na6 {[%emt 0:02:15]} Ra8 {[%emt 0:00:05]} 34. Nc7 {[%emt 0:00:06]} Rd8 {[%emt 0:01:05]} 35. Na6 {[%emt 0:00:24]} Rb3 {[%emt 0:00:17]} 36. Ra4 {[%emt 0:01:30]} Rb5 {[%emt 0:00:16]} 37. Rc2 {[%emt 0:01:20]} Rb1+ {[%emt 0:00:25]} 38. Ke2 {[%emt 0:00:05]} Rb5 {[%emt 0:00:53]} 39. Nb4 {[%emt 0:00:58]} Bxb4 {[%emt 0:00:37]} 40. axb4 {[%emt 0:00:00]} Ke8 {[%emt 0:00:00]} 41. Kd3 {[%emt 0:01:07]} Rdb8 {[%emt 0:01:52]} 42. Kc4 {[%emt 0:00:15]} R5b7 {[%emt 0:00:21]} 43. Rb2 {[%emt 0:00:28]} Kd7 {[%emt 0:00:37]} 44. Ra5 {[%emt 0:00:43]} Rb5 {[%emt 0:01:33]} 45. Ra7+ {[%emt 0:00:35]} R8b7 {[%emt 0:02:07]} 46. Rxb7+ {[%emt 0:00:11]} Rxb7 {[%emt 0:00:07]} 47. Ra2 {[%emt 0:00:07]} e5 {[%emt 0:00:31]} 48. Ra6 {[%emt 0:00:52]} f5 {[%emt 0:00:30]} 49. Ra8 {[%emt 0:02:34]} Ke6 {[%emt 0:02:08]} 50. Rg8 {[%emt 0:04:09]} Kf7 {[%emt 0:00:49]} 51. Rc8 {[%emt 0:00:08]} Ra7 {[%emt 0:00:15]} 52. Rc7+ {[%emt 0:00:07]} 1-0

[Event "EYCC Girls-U12 2019"]
[Site "Bratislava"]
[Date "2019.08.07"]
[Round "6.1"]
[White "Shvedova, Alexandra"]
[Black "Vlasova, Olesia"]
[Result "1-0"]
[ECO "B36"]
[WhiteElo "1932"]
[BlackElo "1799"]
[Annotator "NA"]
[PlyCount "139"]
[EventDate "2019.08.02"]
[EventType "swiss"]
[EventCountry "SVK"]
[SourceTitle "playchess.com"]
[Source "ChessBase"]
[SourceQuality "1"]
[TimeControl "40/5400+30:1800+30"]

1. e4 {[%emt 0:00:00]} c5 {[%emt 0:00:00]} 2. Nf3 {[%emt 0:00:00]} Nc6 {[%emt 0:00:00]} 3. d4 {[%emt 0:00:00]} cxd4 {[%emt 0:00:00]} 4. Nxd4 {[%emt 0:00:00]} g6 {[%emt 0:00:00]} 5. c4 {[%emt 0:00:12]} Nf6 {[%emt 0:00:15]} 6. Nc3 {[%emt 0:00:06]} d6 {[%emt 0:00:07]} 7. Be2 {[%emt 0:03:19]} Nxd4 {[%emt 0:01:30]} 8. Qxd4 {[%emt 0:00:06]} Bg7 {[%emt 0:00:12]} 9. Be3 {[%emt 0:02:15]} O-O {[%emt 0:01:19]} 10. Qd2 {[%emt 0:12:05]} a5 {[%emt 0:13:37]} 11. f3 {[%emt 0:01:58]} a4 {[%emt 0:00:59]} 12. O-O {[%emt 0:00:53]} Qa5 {[%emt 0:01:51]} 13. Rac1 {[%emt 0:13:28]} Be6 {[%emt 0:04:27]} 14. Nd5 {[%emt 0:07:50]} Qxd2 {[%emt 0:02:02]} 15. Bxd2 {[%emt 0:01:08]} Bxd5 {[%emt 0:01:08]} 16. cxd5 {[%emt 0:03:24]} Rfc8 {[%emt 0:07:10]} 17. Bb5 {[%emt 0:05:06]} Ne8 {[%emt 0:09:05]} 18. Be3 {[%emt 0:19:21]} Rxc1 {[%emt 0:04:16]} 19. Rxc1 {[%emt 0:00:06]} Bxb2 {[%emt 0:00:56]} 20. Rc4 {[%emt 0:00:41]} a3 {[%emt 0:00:59]} 21. Bg5 {[%emt 0:06:53]} Kf8 {[%emt 0:02:13]} 22. Kf1 {[%emt 0:05:04]} h5 {[%emt 0:12:43]} 23. Ke2 {[%emt 0:00:47]} Rb8 {[%emt 0:07:07]} 24. Bh6+ {[%emt 0:01:56]} Kg8 {[%emt 0:01:18]} 25. Kd3 {[%emt 0:02:53]} e6 {[%emt 0:06:30]} 26. Bxe8 {[%emt 0:02:11]} Rxe8 {[%emt 0:00:11]} 27. dxe6 {[%emt 0:00:11]} fxe6 {[%emt 0:01:24]} 28. Rc7 {[%emt 0:01:26]} Rb8 {[%emt 0:01:55]} 29. Bf4 {[%emt 0:02:03]} b5 {[%emt 0:00:46]} 30. Kc2 {[%emt 0:00:54]} e5 {[%emt 0:01:48]} 31. Bh6 {[%emt 0:00:11]} b4 {[%emt 0:00:53]} 32. Kb3 {[%emt 0:03:09]} Bd4 {[%emt 0:00:13]} 33. Rg7+ {[%emt 0:00:19]} Kh8 {[%emt 0:00:20]} 34. Rc7 {[%emt 0:01:10]} Bc5 {[%emt 0:00:18]} 35. Bg7+ {[%emt 0:00:23]} Kg8 {[%emt 0:01:13]} 36. Bxe5 {[%emt 0:00:55]} Re8 {[%emt 0:02:29]} 37. Bf4 {[%emt 0:00:34]} Re6 {[%emt 0:01:12]} 38. Bd2 {[%emt 0:00:14]} Bg1 {[%emt 0:00:14]} 39. Bxb4 {[%emt 0:01:06]} Bxh2 {[%emt 0:00:13]} 40. Bxa3 {[%emt 0:00:00]} g5 {[%emt 0:00:00]} 41. Rc8+ {[%emt 0:03:06]} Kh7 {[%emt 0:04:55]} 42. Rc1 {[%emt 0:01:57]} Bf4 {[%emt 0:01:03]} 43. Rg1 {[%emt 0:01:08]} Bg3 {[%emt 0:00:54]} 44. Bc1 {[%emt 0:01:22]} g4 {[%emt 0:07:39]} 45. a4 {[%emt 0:10:40]} Re5 {[%emt 0:06:46]} 46. Bb2 {[%emt 0:01:20]} Rg5 {[%emt 0:00:41]} 47. Rf1 {[%emt 0:02:41]} gxf3 {[%emt 0:01:22]} 48. Rxf3 {[%emt 0:00:54]} Be1 {[%emt 0:06:03]} 49. Rf1 {[%emt 0:02:08]} Rg3+ {[%emt 0:03:21]} 50. Kc4 {[%emt 0:06:06]} Rxg2 {[%emt 0:03:56]} 51. Bd4 {[%emt 0:02:42]} Ba5 {[%emt 0:05:44]} 52. Rf5 {[%emt 0:00:18]} Be1 {[%emt 0:00:25]} 53. Rxh5+ {[%emt 0:00:06]} Kg6 {[%emt 0:00:49]} 54. Rd5 {[%emt 0:00:34]} Kf7 {[%emt 0:01:21]} 55. Rxd6 {[%emt 0:00:37]} Ke7 {[%emt 0:00:48]} 56. Kd5 {[%emt 0:00:43]} Ra2 {[%emt 0:00:45]} 57. Ra6 {[%emt 0:00:28]} Rd2 {[%emt 0:00:20]} 58. Kc5 {[%emt 0:00:51]} Re2 {[%emt 0:00:22]} 59. e5 {[%emt 0:00:30]} Bg3 {[%emt 0:00:20]} 60. Kd5 {[%emt 0:00:37]} Rd2 {[%emt 0:00:12]} 61. Ke4 {[%emt 0:01:12]} Rd1 {[%emt 0:03:36]} 62. Bc5+ {[%emt 0:00:32]} Ke8 {[%emt 0:01:08]} 63. Kf5 {[%emt 0:00:57]} Re1 {[%emt 0:03:59]} 64. e6 {[%emt 0:02:34]} Rd1 {[%emt 0:01:39]} 65. Ra8+ {[%emt 0:02:24]} Rd8 {[%emt 0:00:04]} 66. Rxd8+ {[%emt 0:00:35]} Kxd8 {[%emt 0:00:00]} 67. e7+ {[%emt 0:00:06]} Kd7 {[%emt 0:01:04]} 68. a5 {[%emt 0:00:07]} Bb8 {[%emt 0:00:51]} 69. Kf6 {[%emt 0:00:10]} Bg3 {[%emt 0:00:38]} 70. Kf7 {[%emt 0:00:05]} 1-0

[Event "EYCC Girls-U12 2019"]
[Site "Bratislava"]
[Date "2019.08.07"]
[Round "6.2"]
[White "Karaivanova, Petya"]
[Black "Verheij, Dana"]
[Result "1-0"]
[ECO "B90"]
[WhiteElo "1792"]
[BlackElo "1497"]
[Annotator "NA"]
[PlyCount "83"]
[EventDate "2019.08.02"]
[EventType "swiss"]
[EventCountry "SVK"]
[SourceTitle "playchess.com"]
[Source "ChessBase"]
[SourceQuality "1"]
[TimeControl "40/5400+30:1800+30"]

1. e4 {[%emt 0:00:00]} c5 {[%emt 0:00:00]} 2. Nf3 {[%emt 0:00:00]} d6 {[%emt 0:00:00]} 3. d4 {[%emt 0:00:00]} cxd4 {[%emt 0:00:00]} 4. Nxd4 {[%emt 0:00:00]} Nf6 {[%emt 0:00:00]} 5. Nc3 {[%emt 0:00:00]} a6 {[%emt 0:00:01]} 6. Be3 {[%emt 0:00:00]} e5 {[%emt 0:00:12]} 7. Nb3 {[%emt 0:00:08]} Be6 {[%emt 0:00:13]} 8. f3 {[%emt 0:01:03]} Be7 {[%emt 0:00:15]} 9. Qd2 {[%emt 0:01:31]} O-O {[%emt 0:00:13]} 10. g4 {[%emt 0:01:55]} Nbd7 {[%emt 0:00:46]} 11. h4 {[%emt 0:04:38]} b5 {[%emt 0:01:00]} 12. h5 {[%emt 0:11:22]} b4 {[%emt 0:05:45]} 13. Nd5 {[%emt 0:06:48]} Bxd5 {[%emt 0:00:15]} 14. exd5 {[%emt 0:00:05]} Nb6 {[%emt 0:01:48]} 15. Bxb6 {[%emt 0:04:46]} Qxb6 {[%emt 0:00:07]} 16. g5 {[%emt 0:01:36]} Nd7 {[%emt 0:00:44]} 17. Bh3 {[%emt 0:04:28]} Nc5 {[%emt 0:02:49]} 18. Bf5 {[%emt 0:12:28]} a5 {[%emt 0:13:46]} 19. Nxc5 {[%emt 0:03:20]} dxc5 {[%emt 0:01:16]} 20. g6 {[%emt 0:00:51]} c4 {[%emt 0:05:13]} 21. c3 {[%emt 0:05:54]} h6 {[%emt 0:16:33]} 22. gxf7+ {[%emt 0:04:47]} Kh8 {[%emt 0:00:32]} 23. Be6 {[%emt 0:01:05]} bxc3 {[%emt 0:00:39]} 24. bxc3 {[%emt 0:00:14]} Bg5 {[%emt 0:00:34]} 25. Qf2 {[%emt 0:04:54]} Be3 {[%emt 0:03:38]} 26. Qe2 {[%emt 0:00:53]} Rab8 {[%emt 0:00:55]} 27. Rd1 {[%emt 0:03:36]} Bf4 {[%emt 0:06:23]} 28. Qf2 {[%emt 0:01:12]} Qd6 {[%emt 0:02:33]} 29. O-O {[%emt 0:04:07]} Qa3 {[%emt 0:01:32]} 30. Rb1 {[%emt 0:07:21]} Qxc3 {[%emt 0:01:12]} 31. Rxb8 {[%emt 0:01:30]} Rxb8 {[%emt 0:00:47]} 32. Re1 {[%emt 0:01:13]} Qd4 {[%emt 0:04:17]} 33. Qxd4 {[%emt 0:01:48]} exd4 {[%emt 0:00:06]} 34. Bc8 {[%emt 0:00:56]} Bd6 {[%emt 0:05:04]} 35. Re8+ {[%emt 0:01:16]} Kh7 {[%emt 0:00:23]} 36. Bf5+ {[%emt 0:01:49]} g6 {[%emt 0:00:10]} 37. hxg6+ {[%emt 0:02:32]} Kg7 {[%emt 0:00:12]} 38. f8=Q+ {[%emt 0:00:06]} Bxf8 {[%emt 0:00:11]} 39. Rxb8 {[%emt 0:00:03]} d3 {[%emt 0:01:31]} 40. Rb7+ {[%emt 0:00:00]} Kf6 {[%emt 0:00:00]} 41. Rf7+ {[%emt 0:00:48]} Ke5 {[%emt 0:00:57]} 42. Rxf8 {[%emt 0:01:15]} 1-0

[Event "EYCC Girls-U12 2019"]
[Site "Bratislava"]
[Date "2019.08.07"]
[Round "6.3"]
[White "Zhou, Lepu Coco"]
[Black "Manko, Mariya"]
[Result "0-1"]
[ECO "B27"]
[WhiteElo "1861"]
[BlackElo "1807"]
[Annotator "NA"]
[PlyCount "102"]
[EventDate "2019.08.02"]
[EventType "swiss"]
[EventCountry "SVK"]
[SourceTitle "playchess.com"]
[Source "ChessBase"]
[SourceQuality "1"]
[TimeControl "40/5400+30:1800+30"]

1. e4 {[%emt 0:00:00]} c5 {[%emt 0:00:00]} 2. Nf3 {[%emt 0:00:00]} g6 {[%emt 0:00:01]} 3. c4 {[%emt 0:00:09]} Bg7 {[%emt 0:01:21]} 4. d4 {[%emt 0:00:22]} cxd4 {[%emt 0:00:18]} 5. Nxd4 {[%emt 0:00:09]} b6 {[%emt 0:00:59]} 6. Nc3 {[%emt 0:02:09]} Bb7 {[%emt 0:00:24]} 7. Be2 {[%emt 0:02:08]} Nc6 {[%emt 0:00:37]} 8. Be3 {[%emt 0:00:39]} Nf6 {[%emt 0:00:24]} 9. O-O {[%emt 0:03:03]} O-O {[%emt 0:00:57]} 10. f3 {[%emt 0:02:00]} e6 {[%emt 0:01:00]} 11. Ndb5 {[%emt 0:03:05]} d5 {[%emt 0:01:07]} 12. cxd5 {[%emt 0:00:55]} exd5 {[%emt 0:00:09]} 13. exd5 {[%emt 0:01:06]} Nb4 {[%emt 0:00:38]} 14. d6 {[%emt 0:07:23]} Nfd5 {[%emt 0:00:37]} 15. Bf2 {[%emt 0:06:41]} Nf4 {[%emt 0:02:34]} 16. Bg3 {[%emt 0:04:29]} Nh5 {[%emt 0:03:10]} 17. Bf2 {[%emt 0:05:10]} Qg5 {[%emt 0:01:15]} 18. Qc1 {[%emt 0:03:39]} Nf4 {[%emt 0:00:55]} 19. Bg3 {[%emt 0:04:56]} Nxe2+ {[%emt 0:00:26]} 20. Nxe2 {[%emt 0:00:11]} Qxb5 {[%emt 0:00:18]} 21. Qd2 {[%emt 0:01:38]} Nd5 {[%emt 0:03:26]} 22. Rab1 {[%emt 0:04:12]} Rfe8 {[%emt 0:02:16]} 23. Nc3 {[%emt 0:02:41]} Qc5+ {[%emt 0:02:04]} 24. Kh1 {[%emt 0:02:31]} Nxc3 {[%emt 0:00:13]} 25. bxc3 {[%emt 0:01:35]} Be5 {[%emt 0:03:25]} 26. d7 {[%emt 0:01:52]} Red8 {[%emt 0:02:58]} 27. Bxe5 {[%emt 0:02:38]} Qxe5 {[%emt 0:00:09]} 28. Rbd1 {[%emt 0:00:47]} Bc6 {[%emt 0:03:41]} 29. Rfe1 {[%emt 0:01:54]} Qf5 {[%emt 0:00:22]} 30. Re7 {[%emt 0:01:00]} Ba4 {[%emt 0:00:40]} 31. Rde1 {[%emt 0:06:02]} Rxd7 {[%emt 0:01:15]} 32. Rxd7 {[%emt 0:03:24]} Qxd7 {[%emt 0:00:16]} 33. Qf4 {[%emt 0:01:08]} Re8 {[%emt 0:01:07]} 34. Rxe8+ {[%emt 0:01:08]} Qxe8 {[%emt 0:00:05]} 35. h4 {[%emt 0:00:22]} h5 {[%emt 0:01:23]} 36. Qd4 {[%emt 0:01:38]} Qd7 {[%emt 0:00:47]} 37. Qe5 {[%emt 0:01:18]} Kh7 {[%emt 0:00:56]} 38. Qf4 {[%emt 0:02:55]} Bc6 {[%emt 0:01:16]} 39. c4 {[%emt 0:03:17]} Kg7 {[%emt 0:01:49]} 40. Qe5+ {[%emt 0:00:00]} f6 {[%emt 0:00:00]} 41. Qb8 {[%emt 0:05:09]} Qe7 {[%emt 0:00:47]} 42. Qg3 {[%emt 0:01:25]} Kf7 {[%emt 0:00:43]} 43. Qf2 {[%emt 0:02:10]} Bd7 {[%emt 0:02:41]} 44. Qd2 {[%emt 0:03:47]} a5 {[%emt 0:02:36]} 45. Kh2 {[%emt 0:04:41]} Qe5+ {[%emt 0:01:07]} 46. f4 {[%emt 0:01:42]} Qc7 {[%emt 0:00:43]} 47. c5 {[%emt 0:03:04]} bxc5 {[%emt 0:00:26]} 48. g3 {[%emt 0:01:29]} c4 {[%emt 0:00:21]} 49. Qc3 {[%emt 0:01:32]} Qc5 {[%emt 0:00:07]} 50. Kg2 {[%emt 0:01:28]} Bc6+ {[%emt 0:00:19]} 51. Kh3 {[%emt 0:00:32]} Qd5 {[%emt 0:00:18]} 0-1

[Event "EYCC Girls-U12 2019"]
[Site "Bratislava"]
[Date "2019.08.07"]
[Round "6.4"]
[White "Karmanova, Olga Dm."]
[Black "Ivanova, Dilyana"]
[Result "1-0"]
[ECO "A40"]
[WhiteElo "1838"]
[BlackElo "1734"]
[Annotator "NA"]
[PlyCount "129"]
[EventDate "2019.08.02"]
[EventType "swiss"]
[EventCountry "SVK"]
[SourceTitle "playchess.com"]
[Source "ChessBase"]
[SourceQuality "1"]
[TimeControl "40/5400+30:1800+30"]

1. d4 {[%emt 0:00:00]} Nf6 {[%emt 0:00:00]} 2. c4 {[%emt 0:00:00]} e6 {[%emt 0:00:00]} 3. g3 {[%emt 0:00:00]} c5 {[%emt 0:05:29]} 4. Nf3 {[%emt 0:00:38]} b6 {[%emt 0:01:09]} 5. d5 {[%emt 0:10:00]} exd5 {[%emt 0:04:17]} 6. cxd5 {[%emt 0:09:06]} d6 {[%emt 0:03:30]} 7. Nc3 {[%emt 0:00:59]} g6 {[%emt 0:04:31]} 8. Bg2 {[%emt 0:03:44]} Bg7 {[%emt 0:00:58]} 9. O-O {[%emt 0:01:17]} O-O {[%emt 0:04:28]} 10. Nd2 {[%emt 0:01:57]} Re8 {[%emt 0:02:01]} 11. a4 {[%emt 0:02:35]} Nbd7 {[%emt 0:15:25]} 12. Nc4 {[%emt 0:05:23]} Ne5 {[%emt 0:03:46]} 13. Nxe5 {[%emt 0:00:41]} Rxe5 {[%emt 0:00:51]} 14. e4 {[%emt 0:02:49]} Ne8 {[%emt 0:07:03]} 15. Re1 {[%emt 0:04:38]} f5 {[%emt 0:02:33]} 16. f4 {[%emt 0:01:04]} Re7 {[%emt 0:03:45]} 17. e5 {[%emt 0:03:13]} a6 {[%emt 0:07:22]} 18. e6 {[%emt 0:03:00]} Bb7 {[%emt 0:05:47]} 19. Be3 {[%emt 0:06:48]} Nf6 {[%emt 0:06:11]} 20. h3 {[%emt 0:02:17]} Rb8 {[%emt 0:03:11]} 21. Qd3 {[%emt 0:02:57]} Kh8 {[%emt 0:05:07]} 22. Bf2 {[%emt 0:01:22]} Qc7 {[%emt 0:02:51]} 23. Rac1 {[%emt 0:03:26]} Qd8 {[%emt 0:03:55]} 24. Bf3 {[%emt 0:03:40]} Bh6 {[%emt 0:01:27]} 25. Rcd1 {[%emt 0:01:46]} Qc7 {[%emt 0:01:56]} 26. b3 {[%emt 0:02:02]} Rg8 {[%emt 0:00:25]} 27. h4 {[%emt 0:01:22]} Ne8 {[%emt 0:01:21]} 28. Nb1 {[%emt 0:02:18]} Qd8 {[%emt 0:02:10]} 29. Na3 {[%emt 0:00:43]} Bc8 {[%emt 0:00:44]} 30. Qd2 {[%emt 0:02:50]} Bg7 {[%emt 0:01:26]} 31. Nc4 {[%emt 0:01:02]} Qc7 {[%emt 0:00:45]} 32. Rc1 {[%emt 0:01:40]} Qd8 {[%emt 0:00:47]} 33. b4 {[%emt 0:00:50]} Qc7 {[%emt 0:00:17]} 34. bxc5 {[%emt 0:02:57]} bxc5 {[%emt 0:00:11]} 35. Na5 {[%emt 0:00:53]} Bb7 {[%emt 0:00:43]} 36. Nxb7 {[%emt 0:01:02]} Qxb7 {[%emt 0:00:06]} 37. Kg2 {[%emt 0:02:25]} Nf6 {[%emt 0:00:24]} 38. Bxc5 {[%emt 0:01:58]} Rd8 {[%emt 0:00:34]} 39. Rb1 {[%emt 0:00:45]} Qc8 {[%emt 0:00:23]} 40. Bb6 Rde8 {[%emt 0:00:00]} 41. Rec1 {[%emt 0:00:34]} Qa8 {[%emt 0:00:41]} 42. Rc6 {[%emt 0:03:00]} Qb8 {[%emt 0:01:06]} 43. Qc2 {[%emt 0:00:43]} Rb7 {[%emt 0:00:57]} 44. a5 {[%emt 0:00:47]} Kg8 {[%emt 0:00:38]} 45. Rc1 {[%emt 0:00:43]} h6 {[%emt 0:00:43]} 46. Rc8 {[%emt 0:00:55]} Rxc8 {[%emt 0:00:10]} 47. Qxc8+ {[%emt 0:00:04]} Kh7 {[%emt 0:00:41]} 48. Rc6 {[%emt 0:01:26]} Qxc8 {[%emt 0:01:09]} 49. Rxc8 {[%emt 0:00:04]} h5 {[%emt 0:00:17]} 50. Rd8 {[%emt 0:01:09]} Re7 {[%emt 0:00:51]} 51. Rxd6 {[%emt 0:00:20]} Ne8 {[%emt 0:00:26]} 52. Rd7 {[%emt 0:00:11]} Bf6 {[%emt 0:00:08]} 53. Bd8 {[%emt 0:01:15]} Rg7 {[%emt 0:00:29]} 54. Bxf6 {[%emt 0:00:15]} Nxf6 {[%emt 0:00:05]} 55. Rxg7+ {[%emt 0:00:16]} Kxg7 {[%emt 0:00:06]} 56. d6 {[%emt 0:00:34]} Kf8 {[%emt 0:00:07]} 57. Bc6 {[%emt 0:00:13]} Ng8 {[%emt 0:00:42]} 58. e7+ {[%emt 0:00:10]} Nxe7 {[%emt 0:00:05]} 59. dxe7+ {[%emt 0:00:05]} Kxe7 {[%emt 0:00:06]} 60. Bb7 {[%emt 0:00:11]} Kd7 {[%emt 0:00:09]} 61. Bxa6 {[%emt 0:00:08]} Kc7 {[%emt 0:00:30]} 62. Bc4 {[%emt 0:00:33]} Kb7 {[%emt 0:00:15]} 63. Bf7 {[%emt 0:00:12]} Ka6 {[%emt 0:00:04]} 64. Bxg6 {[%emt 0:00:07]} Kxa5 {[%emt 0:00:04]} 65. Bxh5 1-0